fUST/lending_fUST_20240122
["ID","MTS","AMOUNT","RATE_DAILY","PERIOD"]
[312422258,1705867848160,-914.85,0.00028493,2]
[312422259,1705867848170,-513.71,0.00028493,2]
[312422260,1705867848179,-500.0,0.00028493,2]
[312422261,1705867848188,-500.0,0.00028493,2]
[312422262,1705867848198,-586.46,0.00028493,2]
[312422263,1705867848209,-500.0,0.00028493,2]
[312422264,1705867848219,-1850.74,0.00028493,2]
[312422265,1705867848228,-500.0,0.00028493,2]
[312422266,1705867848237,-500.0,0.00028493,2]
[312422267,1705867848246,-1844.18,0.00028493,2]
[312422268,1705867848255,-843.53,0.00028493,2]
[312422269,1705867848264,-500.0,0.00028493,2]
[312422270,1705867848273,-500.0,0.00028493,2]
[312422271,1705867848284,-500.0,0.00028493,2]
[312422272,1705867848294,-500.0,0.00028493,2]
[312422273,1705867848303,-529.81,0.00028493,2]
[312422274,1705867848312,-500.0,0.00028493,2]
[312422275,1705867848321,-500.0,0.00028493,2]
[312422276,1705867848330,-500.0,0.00028493,2]
[312422277,1705867848339,-500.0,0.00028493,2]
[312422278,1705867848348,-500.0,0.00028493,2]
[312422279,1705867848357,-203.87771523,0.00028493,2]
[312422280,1705867848366,-500.0,0.00028493,2]
[312422281,1705867848376,-500.0,0.00028493,2]
[312422282,1705867848385,-500.0,0.00028493,2]
[312422283,1705867848394,-272.10921879,0.00028493,2]
[312422284,1705867848403,-558.88,0.00028493,2]
[312422285,1705867848412,-500.0,0.00028493,2]
[312422286,1705867848421,-792.94,0.00028493,2]
[312422287,1705867848431,-536.77,0.00028493,2]
[312422288,1705867848440,-990.58,0.00028493,2]
[312422289,1705867848449,-500.0,0.00028493,2]
[312422290,1705867848458,-349.449581,0.00028493,2]
[312422291,1705867848467,-500.0,0.00028493,2]
[312422293,1705867848475,-500.0,0.00028493,2]
[312422295,1705867848484,-1000.0,0.00028493,2]
[312422296,1705867848493,-500.0,0.00028493,2]
[312422297,1705867848502,-500.0,0.00028493,2]
[312422298,1705867848510,-648.27,0.00028493,2]
[312422299,1705867848519,-500.0,0.00028493,2]
[312422300,1705867848528,-500.0,0.00028493,2]
[312422301,1705867848537,-500.0,0.00028493,2]
[312422302,1705867848545,-668.06,0.00028493,2]
[312422303,1705867848554,-1942.9,0.00028493,2]
[312422304,1705867848563,-500.0,0.00028493,2]
[312422305,1705867848572,-500.0,0.00028493,2]
[312422306,1705867848581,-500.0,0.00028493,2]
[312422307,1705867848590,-500.0,0.00028493,2]
[312422308,1705867848600,-491.83100302,0.00028493,2]
[312422309,1705867848697,-500.0,0.00028493,2]
[312422310,1705867848706,-500.0,0.00028493,2]
[312422311,1705867848716,-500.0,0.00028493,2]
[312422312,1705867848725,-500.0,0.00028493,2]
[312422313,1705867848735,-500.0,0.00028493,2]
[312422314,1705867848745,-500.0,0.00028493,2]
[312422315,1705867848754,-1181.99,0.00028493,2]
[312422316,1705867848763,-500.0,0.00028493,2]
[312422317,1705867848773,-500.0,0.00028493,2]
[312422318,1705867848782,-500.0,0.00028493,2]
[312422319,1705867848792,-500.0,0.00028493,2]
[312422320,1705867848802,-500.0,0.00028493,2]
[312422321,1705867848811,-561.10174974,0.00028493,2]
[312422322,1705867848820,-709.09,0.00028493,2]
[312422323,1705867848830,-633.99,0.00028493,2]
[312422324,1705867848838,-500.0,0.00028493,2]
[312422325,1705867848848,-500.0,0.00028493,2]
[312422326,1705867848857,-1257.26,0.00028493,2]
[312422327,1705867848866,-718.63,0.00028493,2]
[312422328,1705867848876,-500.0,0.00028493,2]
[312422329,1705867848885,-773.08,0.00028493,2]
[312422330,1705867848895,-500.0,0.00028493,2]
[312422331,1705867848905,-500.0,0.00028493,2]
[312422332,1705867848916,-512.31,0.00028493,2]
[312422333,1705867848925,-13068.3214041,0.00028493,2]
[312422334,1705867849026,-1750.03357533,0.00028493,2]
[312422335,1705867849039,-2073.74629911,0.00028493,2]
[312422336,1705867849051,-3349.52918728,0.00028493,2]
[312422337,1705867849270,-500.0,0.00027397,2]
[312422338,1705867849281,-500.0,0.00027397,2]
[312422339,1705867849291,-296.506691,0.00027671,2]
[312422340,1705867849299,-296.506691,0.00027671,2]
[312422341,1705867849308,-296.506691,0.00027671,2]
[312422342,1705867849317,-296.506691,0.00027671,2]
[312422343,1705867849327,-296.506691,0.00027671,2]
[312422344,1705867849336,-296.506691,0.00027671,2]
[312422345,1705867849345,-296.506691,0.00027671,2]
[312422346,1705867849354,-296.506691,0.00027671,2]
[312422347,1705867849363,-296.506694,0.00027671,2]
[312422348,1705867849372,-489.62,0.00027671,2]
[312422349,1705867849382,-962.13953418,0.00028493,2]
[312422350,1705867849391,-508.56,0.00028493,2]
[312422351,1705867849400,-761.28,0.00028493,2]
[312422352,1705867849409,-500.0,0.00028493,2]
[312422353,1705867849418,-575.65,0.00028493,2]
[312422354,1705867849428,-500.0,0.00028493,2]
[312422355,1705867849437,-608.71229431,0.00028493,2]
[312422443,1705869038107,-154.75239617,0.00024902,4]
[312422445,1705869038116,-230.12614521,0.00026119,2]
[312422447,1705869038125,-7379.86363499,0.00026998,2]
[312422448,1705869038134,-7956.19039627,0.00026999,2]
[312422450,1705869038143,-1500.0,0.00027,2]
[312422452,1705869038153,-2645.29,0.00027387,3]
[312422454,1705869038162,-2204.41,0.00027387,3]
[312422456,1705869038172,-1837.01,0.00027387,3]
[312422458,1705869038181,-262.14973458,0.00027394,2]
[312422460,1705869038191,-154.86062544,0.00027395,2]
[312422462,1705869038200,-875.93915164,0.00027395,2]
[312422464,1705869038210,-10378.41578274,0.00027395,2]
[312422466,1705869038219,-170.79924496,0.00027395,2]
[312422468,1705869038228,-644.05484588,0.00027396,2]
[312422470,1705869038237,-500.0,0.00027397,2]
[312422472,1705869038248,-500.0,0.00027397,2]
[312422474,1705869038257,-500.0,0.00027397,2]
[312422476,1705869038266,-500.0,0.00027397,2]
[312422478,1705869038276,-19951.9908219,0.00027397,7]
[312422480,1705869038285,-500.0,0.00027397,2]
[312422482,1705869038294,-500.0,0.00027397,2]
[312422484,1705869038303,-500.0,0.00027397,2]
[312422486,1705869038312,-500.0,0.00027397,2]
[312422488,1705869038322,-151.53580206,0.00027397,2]
[312422490,1705869038331,-500.0,0.00027397,2]
[312422492,1705869038340,-500.0,0.00027397,2]
[312422494,1705869038349,-537.22,0.00027397,2]
[312422496,1705869038358,-500.0,0.00027397,2]
[312422498,1705869038368,-500.0,0.00027397,2]
[312422500,1705869038377,-500.0,0.00027397,2]
[312422501,1705869038386,-346.71546179,0.00027397,2]
[312422503,1705869038396,-645.0704985,0.00027397,2]
[312422505,1705869038405,-500.0,0.00027397,2]
[312422507,1705869038414,-596.3317369,0.00027397,2]
[312422509,1705869038423,-500.0,0.00027397,2]
[312422511,1705869038432,-500.0,0.00027397,2]
[312422513,1705869038442,-500.0,0.00027397,2]
[312422515,1705869038451,-500.0,0.00027397,2]
[312422517,1705869038460,-500.0,0.00027397,2]
[312422519,1705869038470,-500.0,0.00027397,2]
[312422521,1705869038479,-500.0,0.00027397,2]
[312422523,1705869038488,-500.0,0.00027397,2]
[312422525,1705869038499,-500.0,0.00027397,2]
[312422527,1705869038508,-500.0,0.00027397,2]
[312422529,1705869038517,-500.0,0.00027397,2]
[312422531,1705869038526,-500.0,0.00027397,2]
[312422533,1705869038535,-500.0,0.00027397,2]
[312422535,1705869038544,-511.95,0.00027397,2]
[312422537,1705869038553,-500.0,0.00027397,2]
[312422539,1705869038562,-500.0,0.00027397,2]
[312422541,1705869038572,-500.0,0.00027397,2]
[312422543,1705869038584,-693.7,0.00027397,2]
[312422545,1705869038593,-500.0,0.00027397,2]
[312422547,1705869038602,-500.0,0.00027397,2]
[312422548,1705869038611,-500.0,0.00027397,2]
[312422550,1705869038620,-500.0,0.00027397,2]
[312422552,1705869038629,-500.0,0.00027397,2]
[312422554,1705869038640,-907.41,0.00027397,2]
[312422556,1705869038651,-500.0,0.00027397,2]
[312422558,1705869038661,-500.0,0.00027397,2]
[312422560,1705869038670,-500.0,0.00027397,2]
[312422562,1705869038679,-500.0,0.00027397,2]
[312422564,1705869038688,-500.0,0.00027397,2]
[312422566,1705869038698,-540.25,0.00027397,2]
[312422568,1705869038708,-500.0,0.00027397,2]
[312422569,1705869038717,-500.0,0.00027397,2]
[312422570,1705869038726,-581.49926245,0.00027397,2]
[312422571,1705869038735,-500.0,0.00027397,2]
[312422572,1705869038745,-500.0,0.00027397,2]
[312422573,1705869038754,-500.0,0.00027397,2]
[312422574,1705869038763,-500.0,0.00027397,2]
[312422575,1705869038772,-500.0,0.00027397,2]
[312422576,1705869038781,-754.96,0.00027397,2]
[312422577,1705869038790,-500.0,0.00027397,2]
[312422578,1705869038799,-739.61,0.00027397,2]
[312422579,1705869038807,-500.0,0.00027397,2]
[312422580,1705869038816,-500.0,0.00027397,2]
[312422581,1705869038826,-500.0,0.00027397,2]
[312422582,1705869038835,-500.0,0.00027397,2]
[312422583,1705869038844,-500.0,0.00027397,2]
[312422584,1705869038853,-500.0,0.00027397,2]
[312422585,1705869038862,-500.0,0.00027397,2]
[312422586,1705869038871,-501.64392268,0.00027397,2]
[312422587,1705869038880,-200.0,0.00027397,2]
[312422588,1705869038890,-500.0,0.00027397,2]
[312422589,1705869038903,-500.0,0.00027397,2]
[312422590,1705869038912,-500.0,0.00027397,2]
[312422591,1705869038921,-500.0,0.00027397,2]
[312422592,1705869038930,-500.0,0.00027397,2]
[312422593,1705869038939,-500.0,0.00027397,2]
[312422594,1705869038948,-500.0,0.00027397,2]
[312422595,1705869038958,-1622.75,0.00027397,2]
[312422596,1705869038966,-515.04596927,0.00027397,2]
[312422597,1705869038976,-2097.34,0.00027397,2]
[312422598,1705869038986,-500.0,0.00027397,2]
[312422599,1705869038995,-500.0,0.00027397,2]
[312422600,1705869039004,-500.0,0.00027397,2]
[312422601,1705869039013,-500.0,0.00027397,2]
[312422602,1705869039022,-500.0,0.00027397,2]
[312422603,1705869039031,-500.0,0.00027397,2]
[312422604,1705869039040,-500.0,0.00027397,2]
[312422605,1705869039049,-500.0,0.00027397,2]
[312422606,1705869039059,-500.0,0.00027397,2]
[312422607,1705869039068,-500.0,0.00027397,2]
[312422608,1705869039077,-500.0,0.00027397,2]
[312422609,1705869039087,-1001.18344881,0.00027397,5]
[312422610,1705869039096,-500.0,0.00027397,2]
[312422611,1705869039105,-500.0,0.00027397,2]
[312422612,1705869039114,-500.0,0.00027397,2]
[312422613,1705869039123,-1614.97,0.00027397,2]
[312422614,1705869039132,-500.0,0.00027397,2]
[312422615,1705869039141,-500.0,0.00027397,2]
[312422616,1705869039150,-500.0,0.00027397,2]
[312422617,1705869039159,-1000.0,0.00027397,2]
[312422618,1705869039168,-500.0,0.00027397,2]
[312422619,1705869039177,-500.0,0.00027397,2]
[312422620,1705869039186,-528.88,0.00027397,2]
[312422621,1705869039196,-286.77019817,0.00027397,2]
[312422622,1705869039205,-500.0,0.00027397,2]
[312422623,1705869039215,-500.0,0.00027397,2]
[312422624,1705869039224,-500.0,0.00027397,2]
[312422625,1705869039232,-500.0,0.00027397,2]
[312422626,1705869039241,-500.0,0.00027397,2]
[312422627,1705869039251,-155.0,0.00027397,2]
[312422628,1705869039260,-430.98156131,0.00027397,2]
[312422629,1705869039269,-500.0,0.00027397,2]
[312422630,1705869039278,-500.0,0.00027397,2]
[312422631,1705869039287,-500.0,0.00027397,2]
[312422632,1705869039296,-500.0,0.00027397,2]
[312422633,1705869039305,-693.77,0.00027397,2]
[312422634,1705869039314,-500.0,0.00027397,2]
[312422635,1705869039323,-586.54466235,0.00027397,2]
[312422636,1705869039332,-500.0,0.00027397,2]
[312422637,1705869039341,-500.0,0.00027397,2]
[312422638,1705869039350,-935.74,0.00027397,2]
[312422639,1705869039359,-500.0,0.00027397,2]
[312422640,1705869039368,-388.68371797,0.00027397,2]
[312422641,1705869039377,-527.09,0.00027397,2]
[312422642,1705869039387,-620.25,0.00027397,2]
[312422643,1705869039396,-500.0,0.00027397,2]
[312422644,1705869039405,-500.0,0.00027397,2]
[312422645,1705869039414,-500.0,0.00027397,2]
[312422646,1705869039423,-805.96,0.00027397,2]
[312422647,1705869039432,-612.02,0.00027397,2]
[312422648,1705869039441,-568.92,0.00027397,2]
[312422649,1705869039449,-500.0,0.00027397,2]
[312422650,1705869039458,-500.0,0.00027397,2]
[312422651,1705869039467,-500.0,0.00027397,2]
[312422652,1705869039476,-1045.26,0.00027397,2]
[312422653,1705869039486,-500.0,0.00027397,2]
[312422654,1705869039495,-500.0,0.00027397,2]
[312422655,1705869039505,-500.0,0.00027397,2]
[312422657,1705869039514,-500.0,0.00027397,2]
[312422659,1705869039523,-1555.96,0.00027397,2]
[312422661,1705869039532,-4333.3,0.00027397,2]
[312422663,1705869039541,-500.0,0.00027397,2]
[312422665,1705869039550,-523.13,0.00027397,2]
[312422667,1705869039560,-500.0,0.00027397,2]
[312422669,1705869039569,-500.0,0.00027397,2]
[312422671,1705869039580,-500.0,0.00027397,2]
[312422673,1705869039589,-735.25,0.00027397,2]
[312422675,1705869039598,-500.0,0.00027397,2]
[312422677,1705869039606,-17626.8,0.00027397,2]
[312422679,1705869039615,-634.34,0.00027397,2]
[312422680,1705869039626,-1635.37,0.00027397,2]
[312422682,1705869039635,-1113.61,0.00027397,2]
[312422683,1705869039644,-1917.96,0.00027397,2]
[312422685,1705869039653,-500.0,0.00027397,2]
[312422686,1705869039663,-500.0,0.00027397,2]
[312422688,1705869039673,-500.0,0.00027397,2]
[312422689,1705869039682,-724.83,0.00027397,2]
[312422690,1705869039690,-11671.14,0.00027397,2]
[312422692,1705869039701,-500.0,0.00027397,2]
[312422694,1705869039710,-500.0,0.00027397,2]
[312422696,1705869039718,-500.0,0.00027397,2]
[312422698,1705869039727,-500.0,0.00027397,2]
[312422699,1705869039738,-500.0,0.00027397,2]
[312422702,1705869039871,-500.0,0.00027397,2]
[312422703,1705869039881,-500.0,0.00027397,2]
[312422704,1705869039890,-886.9,0.00027397,2]
[312422705,1705869039899,-500.0,0.00027397,2]
[312422706,1705869039908,-500.0,0.00027397,2]
[312422707,1705869039918,-900.75,0.00027397,2]
[312422708,1705869039927,-872.31,0.00027397,2]
[312422709,1705869039936,-10000.0,0.00027397,10]
[312422710,1705869039945,-838.04,0.00027397,2]
[312422711,1705869039954,-500.0,0.00027397,2]
[312422712,1705869039963,-1010.77,0.00027397,2]
[312422713,1705869039973,-6453.7,0.00027397,2]
[312422714,1705869039982,-1131.4,0.00027397,2]
[312422715,1705869039991,-511.9404377,0.00027397,2]
[312422716,1705869040001,-500.0,0.00027397,2]
[312422717,1705869040010,-4599.14,0.00027397,2]
[312422718,1705869040019,-1465.03,0.00027397,2]
[312422719,1705869040029,-500.0,0.00027397,2]
[312422720,1705869040038,-500.0,0.00027397,2]
[312422721,1705869040047,-7930.22,0.00027397,2]
[312422722,1705869040056,-5854.27,0.00027397,2]
[312422723,1705869040065,-500.0,0.00027397,2]
[312422724,1705869040075,-453.82432863,0.00027397,2]
[312422725,1705869040085,-500.0,0.00027397,2]
[312422726,1705869040094,-2146.23,0.00027397,2]
[312422727,1705869040103,-500.0,0.00027397,2]
[312422728,1705869040112,-500.0,0.00027397,2]
[312422729,1705869040121,-1068.96,0.00027397,2]
[312422730,1705869040130,-500.0,0.00027397,2]
[312422731,1705869040139,-500.0,0.00027397,2]
[312422732,1705869040149,-500.0,0.00027397,2]
[312422733,1705869040158,-500.0,0.00027397,2]
[312422734,1705869040167,-500.0,0.00027397,2]
[312422735,1705869040177,-1203.44,0.00027397,2]
[312422736,1705869040186,-500.0,0.00027397,2]
[312422737,1705869040195,-500.0,0.00027397,2]
[312422738,1705869040204,-500.0,0.00027397,2]
[312422739,1705869040213,-500.0,0.00027397,2]
[312422740,1705869040222,-454.30429617,0.00027397,2]
[312422741,1705869040232,-500.0,0.00027397,2]
[312422742,1705869040241,-2462.48,0.00027397,2]
[312422743,1705869040251,-500.0723576,0.00027397,2]
[312422744,1705869040261,-1577.30200728,0.00027669,2]
[312422745,1705869040270,-154.86062544,0.00027669,2]
[312422746,1705869040279,-294.70821043,0.0002767,2]
[312422747,1705869040288,-4800.62550921,0.0002767,2]
[312422748,1705869040298,-594.71433165,0.00027671,2]
[312422749,1705869040307,-500.0,0.00027671,2]
[312422750,1705869040317,-500.0,0.00027671,2]
[312422751,1705869040326,-500.0,0.00027671,2]
[312422752,1705869040335,-500.0,0.00027671,2]
[312422753,1705869040344,-500.0,0.00027671,2]
[312422754,1705869040354,-537.22,0.00027671,2]
[312422755,1705869040363,-500.0,0.00027671,2]
[312422756,1705869040372,-500.0,0.00027671,2]
[312422757,1705869040381,-500.0,0.00027671,2]
[312422758,1705869040391,-219.39829432,0.00027671,2]
[312422759,1705869040400,-500.0,0.00027671,2]
[312422760,1705869040410,-500.0,0.00027671,2]
[312422761,1705869040418,-500.0,0.00027671,2]
[312422762,1705869040427,-500.0,0.00027671,2]
[312422763,1705869040436,-500.0,0.00027671,2]
[312422764,1705869040446,-500.0,0.00027671,2]
[312422765,1705869040455,-500.0,0.00027671,2]
[312422766,1705869040465,-500.0,0.00027671,2]
[312422767,1705869040474,-500.0,0.00027671,2]
[312422768,1705869040483,-500.0,0.00027671,2]
[312422769,1705869040492,-500.0,0.00027671,2]
[312422770,1705869040502,-511.95,0.00027671,2]
[312422771,1705869040511,-500.0,0.00027671,2]
[312422772,1705869040520,-693.7,0.00027671,2]
[312422773,1705869040530,-500.0,0.00027671,2]
[312422774,1705869040540,-500.0,0.00027671,2]
[312422775,1705869040549,-500.0,0.00027671,2]
[312422776,1705869040558,-500.0,0.00027671,2]
[312422777,1705869040568,-907.41,0.00027671,2]
[312422778,1705869040580,-500.0,0.00027671,2]
[312422779,1705869040590,-500.0,0.00027671,2]
[312422780,1705869040600,-500.0,0.00027671,2]
[312422781,1705869040610,-540.25,0.00027671,2]
[312422782,1705869040621,-500.0,0.00027671,2]
[312422783,1705869040630,-500.0,0.00027671,2]
[312422784,1705869040639,-500.0,0.00027671,2]
[312422785,1705869040648,-500.0,0.00027671,2]
[312422786,1705869040659,-754.96,0.00027671,2]
[312422787,1705869040670,-500.0,0.00027671,2]
[312422788,1705869040679,-739.61,0.00027671,2]
[312422789,1705869040688,-500.0,0.00027671,2]
[312422790,1705869040698,-500.0,0.00027671,2]
[312422791,1705869040707,-500.0,0.00027671,2]
[312422792,1705869040717,-500.0,0.00027671,2]
[312422793,1705869040726,-158.7612329,0.00027671,2]
[312422794,1705869040735,-500.0,0.00027671,2]
[312422795,1705869040746,-500.0,0.00027671,2]
[312422796,1705869040755,-500.0,0.00027671,2]
[312422797,1705869040764,-500.0,0.00027671,2]
[312422798,1705869040774,-500.0,0.00027671,2]
[312422799,1705869040783,-1622.75,0.00027671,2]
[312422800,1705869040792,-2097.34,0.00027671,2]
[312422801,1705869040801,-500.0,0.00027671,2]
[312422802,1705869040810,-500.0,0.00027671,2]
[312422803,1705869040819,-500.0,0.00027671,2]
[312422804,1705869040829,-500.0,0.00027671,2]
[312422805,1705869040838,-500.0,0.00027671,2]
[312422806,1705869040847,-500.0,0.00027671,2]
[312422807,1705869040856,-500.0,0.00027671,2]
[312422808,1705869040865,-500.0,0.00027671,2]
[312422809,1705869040874,-500.0,0.00027671,2]
[312422810,1705869040883,-500.0,0.00027671,2]
[312422811,1705869040892,-178.51955219,0.00027671,2]
[312422812,1705869040901,-500.0,0.00027671,2]
[312422813,1705869040911,-500.0,0.00027671,2]
[312422814,1705869040920,-1614.97,0.00027671,2]
[312422815,1705869040929,-500.0,0.00027671,2]
[312422816,1705869040938,-500.0,0.00027671,2]
[312422817,1705869040947,-500.0,0.00027671,2]
[312422818,1705869040956,-1000.0,0.00027671,2]
[312422819,1705869040965,-500.0,0.00027671,2]
[312422820,1705869040976,-500.0,0.00027671,2]
[312422821,1705869040985,-528.88,0.00027671,2]
[312422822,1705869040995,-500.0,0.00027671,2]
[312422823,1705869041006,-500.0,0.00027671,2]
[312422824,1705869041015,-500.0,0.00027671,2]
[312422825,1705869041023,-574.04952877,0.00027671,2]
[312422826,1705869041034,-507.59096993,0.00027671,2]
[312422827,1705869041043,-500.0,0.00027671,2]
[312422828,1705869041052,-693.77,0.00027671,2]
[312422829,1705869041062,-500.0,0.00027671,2]
[312422830,1705869041071,-186.61271067,0.00027671,2]
[312422831,1705869041080,-935.74,0.00027671,2]
[312422832,1705869041090,-500.0,0.00027671,2]
[312422833,1705869041099,-527.09,0.00027671,2]
[312422834,1705869041109,-620.25,0.00027671,2]
[312422835,1705869041118,-500.0,0.00027671,2]
[312422836,1705869041127,-500.0,0.00027671,2]
[312422837,1705869041136,-805.96,0.00027671,2]
[312422838,1705869041145,-568.92,0.00027671,2]
[312422839,1705869041154,-500.0,0.00027671,2]
[312422840,1705869041163,-500.0,0.00027671,2]
[312422841,1705869041172,-500.0,0.00027671,2]
[312422842,1705869041181,-1045.26,0.00027671,2]
[312422843,1705869041190,-500.0,0.00027671,2]
[312422844,1705869041199,-500.0,0.00027671,2]
[312422845,1705869041208,-500.0,0.00027671,2]
[312422846,1705869041217,-500.0,0.00027671,2]
[312422847,1705869041226,-1555.96,0.00027671,2]
[312422848,1705869041235,-500.0,0.00027671,2]
[312422849,1705869041244,-4333.3,0.00027671,2]
[312422850,1705869041253,-523.13,0.00027671,2]
[312422851,1705869041262,-500.0,0.00027671,2]
[312422852,1705869041272,-500.0,0.00027671,2]
[312422853,1705869041281,-490.94658652,0.00027671,2]
[312422854,1705869041290,-735.25,0.00027671,2]
[312422855,1705869041298,-500.0,0.00027671,2]
[312422856,1705869041308,-17626.8,0.00027671,2]
[312422857,1705869041318,-634.34,0.00027671,2]
[312422858,1705869041327,-1113.61,0.00027671,2]
[312422859,1705869041337,-1635.37,0.00027671,2]
[312422860,1705869041346,-1917.96,0.00027671,2]
[312422861,1705869041356,-500.0,0.00027671,2]
[312422862,1705869041365,-500.0,0.00027671,2]
[312422863,1705869041374,-500.0,0.00027671,2]
[312422864,1705869041383,-724.83,0.00027671,2]
[312422865,1705869041393,-11671.14,0.00027671,2]
[312422866,1705869041403,-500.0,0.00027671,2]
[312422867,1705869041413,-500.0,0.00027671,2]
[312422868,1705869041424,-500.0,0.00027671,2]
[312422869,1705869041434,-500.0,0.00027671,2]
[312422870,1705869041443,-500.0,0.00027671,2]
[312422871,1705869041452,-886.9,0.00027671,2]
[312422872,1705869041461,-503.44840265,0.00027671,2]
[312422873,1705869041471,-500.0,0.00027671,2]
[312422874,1705869041481,-900.75,0.00027671,2]
[312422875,1705869041490,-872.31,0.00027671,2]
[312422876,1705869041499,-838.04,0.00027671,2]
[312422877,1705869041508,-500.0,0.00027671,2]
[312422878,1705869041517,-1010.77,0.00027671,2]
[312422879,1705869041526,-6453.7,0.00027671,2]
[312422880,1705869041535,-1131.4,0.00027671,2]
[312422881,1705869041545,-500.0,0.00027671,2]
[312422882,1705869041554,-4599.14,0.00027671,2]
[312422883,1705869041563,-1465.03,0.00027671,2]
[312422884,1705869041574,-500.0,0.00027671,2]
[312422885,1705869041587,-7930.22,0.00027671,2]
[312422886,1705869041597,-5854.27,0.00027671,2]
[312422887,1705869041606,-500.0,0.00027671,2]
[312422888,1705869041616,-500.0,0.00027671,2]
[312422889,1705869041626,-2146.23,0.00027671,2]
[312422890,1705869041636,-500.0,0.00027671,2]
[312422891,1705869041646,-500.0,0.00027671,2]
[312422892,1705869041657,-1068.96,0.00027671,2]
[312422893,1705869041667,-500.0,0.00027671,2]
[312422894,1705869041676,-500.0,0.00027671,2]
[312422895,1705869041685,-1203.44,0.00027671,2]
[312422896,1705869041695,-500.0,0.00027671,2]
[312422897,1705869041705,-500.0,0.00027671,2]
[312422898,1705869041715,-500.0,0.00027671,2]
[312422899,1705869041725,-500.0,0.00027671,2]
[312422900,1705869041736,-2462.48,0.00027671,2]
[312422901,1705869041746,-417.7674032,0.00027671,2]
[312422902,1705869041755,-153.0,0.00027671,2]
[312422903,1705869041765,-327.9954237,0.00027671,2]
[312422904,1705869041774,-401.679406,0.00027671,2]
[312422905,1705869041784,-153.0,0.00027671,2]
[312422906,1705869041793,-153.0,0.00027671,2]
[312422907,1705869041802,-153.0,0.00027671,2]
[312422908,1705869041812,-153.0,0.00027671,2]
[312422909,1705869041821,-9118.80664487,0.0002775,4]
[312422910,1705869041830,-5000.0,0.00027829,5]
[312422911,1705869041839,-2541.8523305,0.00027833,3]
[312422912,1705869041848,-21387.97562975,0.00027845,2]
[312422913,1705869041857,-500.0,0.00027945,2]
[312422914,1705869041866,-537.22,0.00027945,2]
[312422915,1705869041875,-500.0,0.00027945,2]
[312422916,1705869041884,-500.0,0.00027945,2]
[312422917,1705869041893,-500.0,0.00027945,2]
[312422918,1705869041902,-500.0,0.00027945,2]
[312422919,1705869041911,-500.0,0.00027945,2]
[312422920,1705869041920,-500.0,0.00027945,2]
[312422921,1705869041929,-500.0,0.00027945,2]
[312422922,1705869041938,-500.0,0.00027945,2]
[312422923,1705869041947,-500.0,0.00027945,2]
[312422924,1705869041956,-500.0,0.00027945,2]
[312422925,1705869041966,-511.95,0.00027945,2]
[312422926,1705869041975,-500.0,0.00027945,2]
[312422927,1705869041985,-693.7,0.00027945,2]
[312422928,1705869041994,-487.49378126,0.00027945,2]